bitfinex-derivatives/quotes_SOLF0:USTF0_20250904
["timestamp","ask_amount","ask_price","bid_price","bid_amount"]
[1756952804403,131.47040957,208.87,208.71,7.99]
[1756952804605,131.47040957,208.87,208.44,1630.3918916]
[1756952804606,8.67459905,208.75,208.67,1.45459905]
[1756952804805,24.41581052,208.74,208.67,1.45459905]
[1756952805009,20.58,208.74,208.67,1.45459905]
[1756952805210,3.8353095,208.73,208.67,1.45459905]
[1756952805406,20.58,208.74,208.67,1.45459905]
[1756952805605,3.83530821,208.73,208.67,1.45459905]
[1756952805808,7.25368282,208.72,208.67,1.45459905]
[1756952806007,7.25368282,208.72,208.63,0.83399238]
[1756952806213,7.25368282,208.72,208.66,1.45459905]
[1756952807412,0.03368282,208.72,208.71,9.44459905]
[1756952807611,0.03368282,208.72,208.71,7.99]
[1756952807910,0.03368282,208.72,208.68,1.45459905]
[1756952808112,0.03368282,208.72,208.69,7.99]
[1756952810412,0.03368282,208.72,208.69,1.45459905]
[1756952810710,1.45459905,208.7,208.58,1.45459905]
[1756952810917,24.14,208.69,208.58,1.45459905]
[1756952811218,0.03595116,208.66,208.58,1.45459905]
[1756952811714,0.03595116,208.66,208.59,7.99]
[1756952811914,0.03595116,208.66,208.57,7.99]
[1756952812114,0.03595116,208.66,208.63,1.45459905]
[1756952812318,0.03595116,208.66,208.63,7.99]
[1756952812614,321.9,208.78,208.62,1.45459905]
[1756952812615,1.45459905,208.78,208.65,7.99]
[1756952812814,1.45459905,208.76,208.68,1.45459905]
[1756952813209,7.22,208.79,208.71,1.45459905]
[1756952813210,1.45459905,208.78,208.71,1.45459905]
[1756952813716,1.45459905,208.78,208.69,9.44459905]
[1756952813910,1.45459905,208.76,208.72,0.03487114]
[1756952814607,7.22,208.75,208.72,0.03487114]
[1756952815113,1.45459905,208.76,208.72,0.03487114]
[1756952815610,7.22,208.74,208.56,0.8341923]
[1756952815815,7.22,208.67,208.52,7.99]
[1756952816015,7.22,208.67,208.54,0.8341723]
[1756952816315,82.78,208.67,208.54,0.8341723]
[1756952816707,133.16,208.67,208.55,7.99]
[1756952816908,0.0346303,208.63,208.55,7.99]
[1756952820523,0.0346303,208.63,208.57,3.85662813]
[1756952820712,0.0346303,208.63,208.58,7.99]
[1756952822013,0.0346303,208.63,208.58,11.84662813]
[1756952822311,0.0346303,208.63,208.59,0.48]
[1756952822516,0.0346303,208.63,208.6,7.99]
[1756952822721,0.0346303,208.63,208.59,7.99]
[1756952823022,0.0346303,208.63,208.58,3.85662813]
[1756952823414,0.0346303,208.63,208.59,7.99]
[1756952823612,0.0346303,208.63,208.58,3.85662813]
[1756952823816,0.0346303,208.63,208.59,7.99]
[1756952824318,7.22,208.73,208.59,8.50116038]
[1756952824518,7.22,208.73,208.59,8.02116038]
[1756952824716,7.22,208.73,208.63,7.99]
[1756952825520,7.22,208.73,208.66,0.03478446]
[1756952829923,322.85408233,208.85,208.66,8.02478446]
[1756952829924,7.22,208.77,208.66,8.02478446]
[1756952830323,7.22,208.77,208.66,7.99]
[1756952830519,7.22,208.77,208.69,0.03482354]
[1756952831122,7.22,208.75,208.69,0.03482354]
[1756952831424,11.07662813,208.75,208.69,0.03482354]
[1756952831622,7.22,208.73,208.69,0.03482354]
[1756952831822,7.22,208.73,208.57,7.99]
[1756952832022,7.25435325,208.73,208.57,7.99]
[1756952832321,7.22,208.73,208.57,7.99]
[1756952833025,7.79407435,208.67,208.57,7.99]
[1756952833729,0.03407435,208.67,208.61,7.61]
[1756952836428,7.76,208.66,208.54,0.8341723]
[1756952836629,7.76,208.66,208.53,7.61]
[1756952836828,7.76,208.66,208.51,0.83451236]
[1756952836829,11.61662813,208.66,208.51,0.83451236]
[1756952837026,7.76,208.61,208.51,0.83451236]
[1756952840833,7.76,208.61,208.47,7.61]
[1756952841134,7.76,208.61,208.5,0.83465247]
[1756952841336,0.03667678,208.56,208.5,0.83465247]
[1756952842136,0.03667678,208.56,208.5,8.44465247]
[1756952842336,0.03667678,208.56,208.5,79.18465247]
[1756952842828,0.03667678,208.56,208.5,8.44465247]
[1756952844637,0.03667678,208.56,208.46,7.61]
[1756952845034,0.03667678,208.56,208.47,0.83469251]
[1756952845940,7.76,208.55,208.43,7.61]
[1756952846138,7.76,208.55,208.45,7.61]
[1756952846640,0.03568222,208.52,208.45,7.61]
[1756952848333,0.03568222,208.52,208.48,7.61]
[1756952848534,14.66,208.67,208.48,7.61]
[1756952848535,7.76,208.65,208.52,3.85662813]
[1756952848736,7.76,208.65,208.53,7.61]
[1756952849338,7.76,208.7,208.55,7.61]
[1756952849736,7.76,208.7,208.57,0.03165152]
[1756952849937,7.76,208.7,208.58,7.61]
[1756952850440,7.76,208.68,208.62,0.03328554]
[1756952850844,4.04124621,208.67,208.51,41.38]
[1756952851042,7.76,208.65,208.63,0.03257527]
[1756952851237,7.76,208.65,208.51,41.38]
[1756952851238,7.76,208.68,208.51,41.38]
[1756952851432,3.56111193,208.67,208.62,0.0347221]
[1756952851634,7.76,208.68,208.62,0.0347221]
[1756952851839,3.56134205,208.67,208.5,7.61]
[1756952852145,7.76,208.68,208.63,0.03169624]
[1756952852436,7.76,208.66,208.56,0.03375012]
[1756952852641,7.76,208.66,208.53,7.61]
[1756952853139,7.76,208.66,208.59,0.03671934]
[1756952855040,7.76,208.74,208.59,7.64671934]
[1756952855235,7.76,208.72,208.59,7.64671934]
[1756952855435,3.56454072,208.71,208.59,7.61]
[1756952855640,3.56454072,208.71,208.63,0.03063781]
[1756952856346,7.76,208.72,208.63,0.03063781]
[1756952856546,3.56498382,208.71,208.63,0.03063781]
[1756952856743,7.76,208.72,208.63,7.64063781]
[1756952857345,7.76,208.72,208.63,0.03063781]
[1756952857948,7.76,208.7,208.63,0.03063781]
[1756952858346,7.76,208.7,208.6,7.61]
[1756952858546,7.76,208.7,208.64,0.03240228]
[1756952860643,7.76,208.68,208.51,3.96596866]
[1756952860847,7.76,208.68,208.5,7.61]
[1756952860848,7.76,208.66,208.5,7.61]
[1756952861050,7.76,208.64,208.5,7.61]
[1756952861250,3.56567068,208.63,208.5,7.61]
[1756952861448,7.76,208.62,208.5,7.61]
[1756952861957,7.85,208.57,208.45,7.61]
[1756952862546,0.03138933,208.53,208.45,7.61]
[1756952862854,7.88138933,208.53,208.45,7.61]
[1756952863558,7.88138933,208.53,208.4,7.74]
[1756952863862,7.85,208.53,208.4,8.57494284]
[1756952864158,0.03152458,208.49,208.4,8.57494284]
[1756952865064,0.03152458,208.49,208.36,3.96596866]
[1756952865065,7.85,208.48,208.36,7.74]
[1756952865362,7.85,208.48,208.36,8.57510313]
[1756952865758,0.03202594,208.44,208.36,8.57510313]
[1756952866858,0.03202594,208.44,208.36,13.02107179]
[1756952867059,0.03202594,208.44,208.37,8.22]
[1756952867366,0.03202594,208.44,208.39,7.74]
[1756952867557,0.03202594,208.44,208.39,130.9]
[1756952867761,0.03202594,208.44,208.39,131.38]
[1756952867960,0.03202594,208.44,208.39,0.48]
[1756952868162,0.03202594,208.44,208.37,6.14321966]
[1756952868364,0.03202594,208.44,208.38,7.74]
[1756952869060,0.03202594,208.44,208.39,7.74]
[1756952869461,0.03202594,208.44,208.41,7.74]
[1756952869662,7.85,208.56,208.44,7.74]
[1756952870862,7.85,208.56,208.48,0.03652756]
[1756952873667,322.14,208.64,208.48,0.03652756]
[1756952873862,11.40664801,208.63,208.48,0.03652756]
[1756952874065,3.55665117,208.62,208.47,7.74]
[1756952874370,7.85,208.61,208.53,0.03509447]
[1756952876167,3.49043245,208.6,208.53,0.03509447]
[1756952876372,7.85,208.59,208.53,0.03509447]
[1756952877472,7.85,208.57,208.53,0.03509447]
[1756952877666,7.85,208.57,208.42,7.74]
[1756952878568,90.16,208.56,208.36,0.83510313]
[1756952878766,0.03623063,208.52,208.37,7.74]
[1756952879071,7.85,208.51,208.37,7.74]
[1756952879270,0.03229491,208.47,208.37,7.74]
[1756952880074,0.03229491,208.47,208.38,7.74]
[1756952882173,0.03229491,208.47,208.38,137.16]
[1756952882368,0.03229491,208.47,208.39,7.74]
[1756952898679,0.03229491,208.47,208.4,128.32]
[1756952898879,0.03229491,208.47,208.41,7.97]
[1756952901290,0.03229491,208.47,208.41,135.89]
[1756952901879,0.03229491,208.47,208.42,7.97]
[1756952902190,0.03229491,208.47,208.41,7.97]
[1756952903886,0.03229491,208.47,208.41,117.51]
[1756952904092,0.03229491,208.47,208.41,135.63]
[1756952904593,0.03229491,208.47,208.41,7.97]
[1756952904790,0.03229491,208.47,208.41,121.69]
[1756952905191,0.03229491,208.47,208.42,7.97]
[1756952905386,0.03229491,208.47,208.42,10.15313531]
[1756952905592,0.03229491,208.47,208.43,4.00991565]
[1756952905790,0.03229491,208.47,208.44,7.97]
[1756952906289,0.03229491,208.47,208.43,4.00991565]
[1756952906791,0.03229491,208.47,208.44,7.97]
[1756952907184,0.03229491,208.47,208.43,4.00991565]
[1756952907386,0.03229491,208.47,208.44,4.00991565]
[1756952907890,0.03229491,208.47,208.45,7.97]
[1756952908187,0.03229491,208.47,208.44,4.00991565]
[1756952908590,0.03229491,208.47,208.45,7.97]
[1756952909590,0.03229491,208.47,208.46,7.97]
[1756952910091,0.03229491,208.47,208.44,7.97]
[1756952913700,0.03229491,208.47,208.42,130.86991565]
[1756952914197,0.03229491,208.47,208.43,126.7]
[1756952914397,0.03229491,208.47,208.44,7.97]
[1756952914696,7.34229491,208.47,208.42,7.97]
[1756952914895,7.34229491,208.47,208.42,134.63]
[1756952915094,7.34229491,208.47,208.43,7.97]
[1756952915897,0.03229491,208.47,208.42,126.66]
[1756952916199,0.03229491,208.47,208.43,7.97]
[1756952916498,0.03229491,208.47,208.42,130.66991565]
[1756952916698,0.03229491,208.47,208.43,7.97]
[1756952917295,0.03229491,208.47,208.42,130.66991565]
[1756952917697,0.03229491,208.47,208.43,7.97]
[1756952918395,0.03229491,208.47,208.42,130.66991565]
[1756952918600,0.03229491,208.47,208.43,7.97]
[1756952919202,7.34229491,208.47,208.42,134.25]
[1756952919401,0.03229491,208.47,208.44,1.45800798]
[1756952919702,0.03229491,208.47,208.46,9.42800798]
[1756952920002,7.34229491,208.47,208.42,138.25991565]
[1756952920201,7.34229491,208.47,208.42,134.25]
[1756952920401,7.34229491,208.47,208.43,9.42800798]
[1756952920802,7.34229491,208.47,208.43,1.45800798]
[1756952921801,7.31,208.46,208.43,1.45800798]
[1756952924004,0.03229491,208.47,208.45,1.45800798]
[1756952924205,0.03229491,208.47,208.45,9.38800798]
[1756952924400,7.68229491,208.47,208.45,1.45800798]
[1756952924708,0.03229491,208.47,208.45,9.38800798]
[1756952925305,0.03229491,208.47,208.45,1.45800798]
[1756952925505,0.03229491,208.47,208.46,7.93]
[1756952926707,7.65,208.55,208.46,7.93]
[1756952926915,7.65,208.55,208.51,1.45800798]
[1756952927411,7.65,208.58,208.51,1.45800798]
[1756952927904,7.65,208.59,208.53,1.45800798]
[1756952928709,7.65,208.57,208.52,0.03682268]
[1756952930014,1.45800798,208.58,208.52,0.03682268]
[1756952930204,7.65,208.57,208.52,0.03682268]
[1756952930908,1.45800798,208.58,208.52,0.03682268]
[1756952931113,9.10800798,208.58,208.52,0.03682268]
[1756952931703,1.45800798,208.56,208.52,0.03682268]
[1756952932212,7.65,208.57,208.52,0.03682268]
[1756952932510,1.45800798,208.58,208.52,0.03682268]
[1756952932813,7.65,208.57,208.52,0.03682268]
[1756952933206,1.45800798,208.58,208.52,0.03682268]
[1756952933411,7.65,208.57,208.52,0.03682268]
[1756952933816,1.45800798,208.58,208.52,0.03682268]
[1756952934015,7.65,208.57,208.52,0.03682268]
[1756952934513,1.45800798,208.58,208.52,0.03682268]
[1756952934814,1.45800798,208.58,208.52,1.49483066]
[1756952934815,7.65,208.58,208.52,1.49483066]
[1756952936417,7.65,208.58,208.52,0.03682268]
[1756952939318,7.65,208.56,208.52,0.03682268]
[1756952940012,1.45800798,208.55,208.52,0.03682268]
[1756952940208,7.65,208.54,208.52,0.03682268]
[1756952941615,1.45800798,208.55,208.52,0.03682268]
[1756952941815,7.65,208.54,208.52,0.03682268]
[1756952942018,125.28,208.62,208.52,0.03682268]
[1756952942019,12.98583447,208.6,208.52,1.49483066]
[1756952942214,7.65,208.62,208.56,1.45800798]
[1756952942718,6.79384245,208.63,208.57,0.03104281]
[1756952942919,7.65,208.62,208.57,0.03104281]
[1756952943418,6.79384245,208.63,208.57,0.03104281]
[1756952943621,7.65,208.62,208.57,0.03104281]
[1756952944011,6.79384245,208.63,208.57,0.03104281]
[1756952944211,7.65,208.62,208.57,0.03104281]
[1756952944417,6.79384245,208.63,208.57,0.03104281]
[1756952944617,1.45800798,208.61,208.57,0.03104281]
[1756952945324,7.65,208.6,208.57,0.03104281]
[1756952945523,1.45800798,208.61,208.57,0.03104281]
[1756952945714,7.65,208.6,208.57,0.03104281]
[1756952946118,1.45800798,208.61,208.57,0.03104281]
[1756952946720,7.65,208.6,208.57,0.03104281]
[1756952946922,1.45800798,208.61,208.57,0.03104281]
[1756952947819,7.65,208.6,208.57,0.03104281]
[1756952948426,1.45800798,208.61,208.57,0.03104281]
[1756952948628,7.65,208.6,208.57,0.03104281]
[1756952949023,1.45800798,208.61,208.57,0.03104281]
[1756952949323,7.65,208.58,208.43,4.00991565]
[1756952949523,7.65,208.53,208.45,1.45800798]
[1756952949827,1.45800798,208.52,208.45,1.45800798]
[1756952950427,0.0307057,208.51,208.45,1.45800798]
[1756952951129,0.0307057,208.51,208.47,1.45800798]
[1756952951725,0.0307057,208.51,208.48,7.93]
[1756952951930,0.0307057,208.51,208.47,1.45800798]
[1756952952130,0.0307057,208.51,208.48,7.27]
[1756952952428,0.0307057,208.51,208.49,8.72800798]
[1756952952631,0.0307057,208.51,208.49,7.27]
[1756952953829,0.0307057,208.51,208.42,4.00991565]
[1756952953830,0.0307057,208.51,208.5,8.72800798]
[1756952954129,7.49,208.59,208.5,8.72800798]
[1756952954326,7.49,208.59,208.55,1.45800798]
[1756952954521,7.49,208.61,208.55,1.45800798]
[1756952955533,7.49,208.61,208.56,0.03107426]
[1756952955728,131.45,208.62,208.56,0.03107426]
[1756952956030,7.49,208.62,208.56,0.03107426]
[1756952956432,131.39,208.62,208.56,0.03107426]
[1756952958132,132.84800798,208.62,208.56,0.03107426]
[1756952958333,131.39,208.62,208.56,0.03107426]
[1756952958535,132.84800798,208.62,208.56,0.03107426]
[1756952959134,131.39,208.62,208.56,0.03107426]
[1756952959528,131.39,208.62,208.56,1.48908224]
[1756952960836,131.39,208.62,208.56,0.03107426]
[1756952961134,131.39,208.62,208.56,1.48908224]
[1756952962634,131.39,208.62,208.56,0.03107426]
[1756952965537,132.84800798,208.62,208.56,0.03107426]
[1756952965939,131.39,208.62,208.56,0.03107426]
[1756952966538,131.39,208.62,208.56,1.48908224]
[1756952967229,7.49,208.62,208.56,1.48908224]
[1756952967431,123.22,208.61,208.56,1.48908224]
[1756952967628,7.49,208.6,208.56,1.48908224]
[1756952967833,123.22,208.61,208.56,1.48908224]
[1756952968334,123.18,208.6,208.56,1.48908224]
[1756952968734,7.49,208.59,208.56,1.48908224]
[1756952968942,334.96583447,208.64,208.58,1.45800798]
[1756952969140,334.96583447,208.64,208.6,1.45800798]
[1756952969141,123.16,208.63,208.6,1.45800798]
[1756952969441,130.65,208.63,208.6,1.45800798]
[1756952969843,123.16,208.63,208.6,1.45800798]
[1756952970032,130.65,208.63,208.56,7.30107426]
[1756952970342,7.49,208.62,208.58,1.45800798]
[1756952970542,123.16,208.63,208.58,1.45800798]
[1756952970933,123.16,208.63,208.56,0.03107426]
[1756952971139,1.45800798,208.59,208.56,0.03107426]
[1756952971337,8.94800798,208.57,208.56,0.03107426]
[1756952971537,132.16800798,208.57,208.56,0.03107426]
[1756952971733,132.16800798,208.57,208.49,1.45800798]
[1756952971946,132.16800798,208.57,208.54,0.03374601]
[1756952972736,1.45800798,208.55,208.44,7.27]
[1756952973044,7.49,208.52,208.45,1.45800798]
[1756952973241,123.2,208.51,208.45,1.45800798]
[1756952973839,7.49,208.52,208.47,1.45800798]
[1756952974144,0.03069768,208.5,208.49,8.72800798]
[1756952975441,0.03069768,208.5,208.49,7.27]
[1756952977745,7.52069768,208.5,208.43,4.00991565]
[1756952977945,7.52069768,208.5,208.41,7.27]
[1756952978352,7.52069768,208.5,208.44,7.27]
[1756952978551,0.03069768,208.5,208.44,7.27]
[1756952978847,7.49,208.55,208.44,7.27]
[1756952979039,0.03441348,208.49,208.44,7.27]
[1756952979240,0.03441348,208.49,208.43,2.27678385]
[1756952979444,0.03441348,208.49,208.41,4.00991565]
[1756952979747,0.03441348,208.49,208.46,2.27678385]
[1756952979944,0.03441348,208.49,208.47,7.27]
[1756952980138,0.03441348,208.49,208.46,2.27678385]
[1756952980549,0.03441348,208.49,208.47,7.27]
[1756952981044,0.03441348,208.49,208.46,2.27678385]
[1756952981245,0.03441348,208.49,208.48,7.27]
[1756952982041,0.03441348,208.49,208.46,9.57678385]
[1756952982350,0.03441348,208.49,208.46,7.3]
[1756952982749,0.03441348,208.49,208.44,2.27678385]
[1756952982946,7.99441348,208.49,208.44,9.57678385]
[1756952983547,7.99441348,208.49,208.45,7.3]
[1756952983752,0.03441348,208.49,208.44,2.27678385]
[1756952983952,7.96,208.48,208.44,2.27678385]
[1756952984952,0.03441348,208.49,208.45,7.3]
[1756952985154,0.03441348,208.49,208.41,7.3]
[1756952985452,0.03441348,208.49,208.42,2.27678385]
[1756952985950,0.03441348,208.49,208.43,7.3]
[1756952986150,0.03441348,208.49,208.45,2.27678385]
[1756952986453,0.03441348,208.49,208.41,7.3]
[1756952986750,0.03441348,208.49,208.44,2.27678385]
[1756952986949,7.96,208.48,208.42,2.27678385]
[1756952987247,7.96,208.46,208.36,4.86829063]
[1756952987454,7.96,208.46,208.37,7.3]
[1756952987649,7.96,208.46,208.37,9.57678385]
[1756952988155,7.96,208.46,208.37,7.3]
[1756952988448,7.96,208.46,208.38,2.27678385]
[1756952988946,7.96,208.46,208.37,7.3]
[1756952989152,7.96,208.46,208.36,0.83510313]
[1756952989943,7.96,208.46,208.33,9.57678385]
[1756952990646,7.99588638,208.42,208.33,9.57678385]
[1756952991446,7.99588638,208.42,208.33,7.3]
[1756952993655,10.27267023,208.42,208.31,0.8352735]
[1756952994350,10.27267023,208.42,208.28,2.27678385]
[1756952994552,10.27267023,208.42,208.28,0.83544395]
[1756952994856,0.03139442,208.37,208.28,0.83544395]
[1756952995057,7.99139442,208.37,208.27,7.3]
[1756952995757,63.51139442,208.37,208.27,7.3]
[1756952995958,7.99139442,208.37,208.27,7.3]
[1756952996257,114.49139442,208.37,208.27,7.3]
[1756952997156,114.49139442,208.37,208.25,7.3]
[1756952997157,7.99139442,208.37,208.25,7.3]
[1756952997351,122.66,208.36,208.25,7.3]
[1756952997755,0.03512839,208.33,208.25,7.3]
[1756952999055,0.03512839,208.33,208.26,2.27678385]
[1756952999562,0.03512839,208.33,208.25,7.3]
[1756952999860,7.99512839,208.33,208.25,7.3]
[1756953001657,7.99512839,208.33,208.12,2.27678385]
[1756953001658,10.27191224,208.33,208.2,7.3]
[1756953002054,10.23678385,208.33,208.2,7.3]
[1756953002256,7.96,208.28,208.2,7.3]
[1756953002450,7.96,208.28,208.1,4.0331875]
[1756953002451,7.96,208.28,208.15,8.13586535]
[1756953002856,7.96,208.28,208.18,7.3]
[1756953003252,0.03445798,208.24,208.16,7.3]
[1756953003452,0.03445798,208.24,208.22,7.3]
[1756953003659,7.96,208.33,208.22,7.3]
[1756953004256,10.23678385,208.37,208.23,2.27678385]
[1756953004463,10.23678385,208.37,208.24,7.3]
[1756953004660,10.23678385,208.37,208.23,2.27678385]
[1756953004661,10.23678385,208.37,208.25,2.27678385]
[1756953004862,10.23678385,208.37,208.28,0.03522831]
[1756953005364,87.64,208.39,208.28,0.03522831]
[1756953005662,10.23678385,208.38,208.28,0.03522831]
[1756953006063,7.96,208.38,208.28,0.03522831]
[1756953006460,7.96,208.35,208.28,0.03522831]
[1756953006963,87.64,208.39,208.28,0.03522831]
[1756953006964,7.96,208.32,208.28,0.03522831]
[1756953007357,2.27678385,208.32,208.28,0.03522831]
[1756953007859,10.23678385,208.35,208.28,0.03522831]
[1756953008356,7.96,208.35,208.26,7.3]
[1756953008557,7.96,208.39,208.29,7.33257149]
[1756953008860,7.96,208.36,208.29,7.3]
[1756953009367,7.96,208.36,208.32,0.03331638]
[1756953009661,2.27678385,208.37,208.32,0.03331638]
[1756953009858,7.96,208.36,208.32,0.03331638]
[1756953010063,7.96,208.33,208.32,0.03331638]
[1756953010658,8.44,208.33,208.15,8.13586535]
[1756953010866,7.96,208.3,208.16,2.27678385]
[1756953011360,7.96,208.3,208.17,7.3]
[1756953011765,0.03616278,208.26,208.2,7.3]
[1756953012173,0.03616278,208.26,208.2,9.57678385]
[1756953012970,0.03616278,208.26,208.2,7.3]
[1756953014566,0.03616278,208.26,208.2,9.57678385]
[1756953014767,0.03616278,208.26,208.2,7.3]
[1756953017066,0.03616278,208.26,208.22,2.27678385]
[1756953017264,0.03616278,208.26,208.2,0.48]
[1756953017464,0.03616278,208.26,208.22,7.72]
[1756953017668,0.03616278,208.26,208.21,2.27678385]
[1756953018366,0.03616278,208.26,208.22,2.27678385]
[1756953018572,0.03616278,208.26,208.23,7.72]
[1756953019068,0.03616278,208.26,208.22,2.27678385]
[1756953019373,0.03616278,208.26,208.23,7.72]
[1756953019872,0.03616278,208.26,208.15,7.72]
[1756953020172,0.03616278,208.26,208.19,7.72]
[1756953020872,0.03616278,208.26,208.25,7.72]
[1756953021371,0.03616278,208.26,208.22,7.72]
[1756953021675,0.03616278,208.26,208.15,7.72]
[1756953021966,7.47,208.25,208.18,2.27678385]
[1756953022575,7.47,208.25,208.15,9.99678385]
[1756953025276,0.03616278,208.26,208.18,7.72]
[1756953025471,0.03616278,208.26,208.2,2.27678385]
[1756953025668,7.47,208.3,208.2,2.27678385]
[1756953025876,0.03381362,208.25,208.18,7.72]
[1756953026172,0.03381362,208.25,208.18,9.99678385]
[1756953028572,0.03381362,208.25,208.22,7.72]
[1756953029677,0.03381362,208.25,208.19,2.27678385]
[1756953030371,0.03381362,208.25,208.18,7.72]
[1756953030879,0.03381362,208.25,208.19,2.27678385]
[1756953031278,0.03381362,208.25,208.18,7.72]
[1756953031478,0.03381362,208.25,208.18,9.99678385]
[1756953035785,0.03381362,208.25,208.19,7.72]
[1756953036180,0.03381362,208.25,208.17,2.27678385]
[1756953036579,21.83,208.22,208.0,4.03005763]
[1756953036883,7.47,208.14,208.01,7.72]
[1756953037086,7.47,208.14,208.03,2.27678385]
[1756953037280,4.12366082,208.13,208.04,7.72]
[1756953037484,4.08868986,208.12,208.04,7.72]
[1756953037681,4.08868986,208.11,208.04,7.72]
[1756953037985,4.08868986,208.1,208.04,7.72]
[1756953038179,4.08868986,208.09,208.01,7.72]
[1756953038383,0.03497096,208.13,208.03,7.72]
[1756953038588,1.46327373,208.16,208.07,9.18327373]
[1756953038782,7.47,208.18,208.1,1.46327373]
[1756953039086,0.03161207,208.14,208.1,1.46327373]
[1756953039288,7.47,208.13,207.94,7.72]
[1756953039477,0.03161207,208.14,208.05,7.72]
[1756953039682,7.47,208.18,208.05,7.72]
[1756953039884,0.03345124,208.12,208.05,7.72]
[1756953040582,0.03345124,208.12,208.06,3.87868482]
[1756953040779,7.47,208.23,208.11,7.72]
[1756953040982,7.47,208.28,208.15,7.72]
[1756953041185,3.59208212,208.27,208.15,7.72]
[1756953041384,3.59208212,208.26,208.15,7.72]
[1756953041590,11.06208212,208.25,208.15,7.72]
[1756953041792,3.59208212,208.24,208.15,7.72]
[1756953041986,7.47,208.25,208.15,11.59868482]
[1756953042285,7.27,208.32,208.19,7.73]
[1756953042486,3.59272987,208.31,208.19,7.73]
[1756953042683,7.27,208.32,208.19,7.73]
[1756953042684,3.59272987,208.3,208.19,7.73]
[1756953042884,3.59272987,208.29,208.23,0.03471945]
[1756953043081,7.27,208.32,208.23,0.03471945]
[1756953043390,3.5934105,208.31,208.23,0.03471945]
[1756953043591,3.5934105,208.3,208.23,0.03471945]
[1756953043886,7.27,208.32,208.23,0.03471945]
[1756953044088,3.59348447,208.31,208.23,0.03471945]
[1756953044278,7.27,208.32,208.23,0.03471945]
[1756953044478,3.5935936,208.31,208.23,0.03471945]
[1756953044679,7.27,208.32,208.23,0.03471945]
[1756953044879,3.59358702,208.31,208.23,0.03471945]
[1756953045086,7.27,208.32,208.23,0.03471945]
[1756953045386,7.27,208.3,208.23,0.03471945]
[1756953045588,3.59344826,208.29,208.23,0.03471945]
[1756953045788,3.59344826,208.28,208.23,0.03471945]
[1756953046095,3.59344826,208.27,208.23,0.03471945]
[1756953046390,7.27,208.31,208.23,0.03471945]
[1756953046591,7.27,208.29,208.23,0.03471945]
[1756953046787,7.27,208.27,208.23,0.03471945]
[1756953046993,7.27,208.31,208.23,0.03471945]
[1756953047185,7.27,208.29,208.23,0.03471945]
[1756953047389,3.59277477,208.28,208.23,0.03471945]
[1756953047592,7.27,208.26,208.23,0.03471945]
[1756953047889,3.87868482,208.28,208.23,0.03471945]
[1756953048090,10.89739228,208.27,208.11,7.73]
[1756953048290,7.27,208.25,208.11,7.73]
[1756953048594,3.5923879,208.24,208.11,7.73]
[1756953048897,7.27,208.25,208.11,7.73]
[1756953049193,0.03026579,208.2,208.11,7.73]
[1756953051401,0.03026579,208.2,208.11,11.60868482]
[1756953051899,0.03026579,208.2,208.11,7.73]
[1756953053492,0.03026579,208.2,208.12,7.73]
[1756953055400,0.03026579,208.2,208.13,3.87868482]
[1756953055698,0.03026579,208.2,208.14,7.73]
[1756953056597,7.27,208.19,208.09,3.87868482]
[1756953056802,7.27,208.19,208.1,7.73]
[1756953057191,0.03124805,208.17,208.1,7.73]
[1756953059201,0.03124805,208.17,208.09,3.87868482]
[1756953060502,0.03124805,208.17,208.01,8.05370551]
[1756953060700,0.03124805,208.17,208.06,3.87868482]
[1756953060900,3.87868482,208.25,208.06,3.87868482]
[1756953061101,0.03205377,208.14,208.06,3.87868482]
[1756953061501,0.03205377,208.14,208.05,3.87868482]
[1756953061804,1.38,208.24,208.05,3.87868482]
[1756953062101,0.03559524,208.12,208.05,3.87868482]
[1756953062306,1.38,208.24,208.05,3.87868482]
[1756953062603,0.03640442,208.11,208.05,3.87868482]